fUST/lending_fUST_20250827
["ID","MTS","AMOUNT","RATE_DAILY","PERIOD"]
[381632592,1756299141923,-576.96,0.00025753,2]
[381632593,1756299141932,-480.0,0.00025753,2]
[381632594,1756299141941,-1707.9,0.00025753,2]
[381632595,1756299141950,-812.92,0.00025753,2]
[381632596,1756299141960,-480.0,0.00025753,2]
[381632597,1756299141969,-739.93,0.00025753,2]
[381632598,1756299141978,-1062.67,0.00025753,2]
[381632599,1756299141988,-3535.34,0.00025753,2]
[381632600,1756299141997,-679.72,0.00025753,2]
[381632601,1756299142007,-550.73,0.00025753,2]
[381632602,1756299142016,-695.89,0.00025753,2]
[381632603,1756299142025,-577.42,0.00025753,2]
[381632604,1756299142035,-680.83,0.00025753,2]
[381632605,1756299142044,-600.93,0.00025753,2]
[381632606,1756299142054,-829.46,0.00025753,2]
[381632607,1756299142063,-1631.46,0.00025753,2]
[381632608,1756299142072,-1995.59,0.00025753,2]
[381632609,1756299142081,-1590.45,0.00025753,2]
[381632610,1756299142091,-539.05,0.00025753,2]
[381632611,1756299142100,-712.28,0.00025753,2]
[381632612,1756299142109,-638.72,0.00025753,2]
[381632613,1756299142119,-266.71,0.00025753,2]
[381632614,1756299142128,-480.0,0.00025753,2]
[381632615,1756299142137,-313.73,0.00025753,2]
[381632616,1756299142147,-755.02,0.00025753,2]
[381632617,1756299142157,-480.0,0.00025753,2]
[381632618,1756299142167,-789.18,0.00025753,2]
[381632619,1756299142176,-480.0,0.00025753,2]
[381632620,1756299142187,-685.55,0.00025753,2]
[381632621,1756299142196,-2224.28,0.00025753,2]
[381632622,1756299142208,-174.28772768,0.00025753,2]
[381632623,1756299142218,-622.18,0.00025753,2]
[381632624,1756299142227,-1015.89,0.00025753,2]
[381632625,1756299142237,-1801.64,0.00025753,2]
[381632626,1756299142246,-678.47,0.00025753,2]
[381632627,1756299142255,-631.08,0.00025753,2]
[381632628,1756299142264,-698.69,0.00025753,2]
[381632629,1756299142274,-2888.9,0.00025753,2]
[381632630,1756299142283,-908.23,0.00025753,2]
[381632631,1756299142294,-480.0,0.00025753,2]
[381632632,1756299142304,-480.0,0.00025753,2]
[381632633,1756299142313,-901.06,0.00025753,2]
[381632634,1756299142321,-480.0,0.00025753,2]
[381632635,1756299142331,-480.0,0.00025753,2]
[381632636,1756299142341,-1290.3,0.00025753,2]
[381632637,1756299142350,-1110.35,0.00025753,2]
[381632638,1756299142360,-911.51,0.00025753,2]
[381632639,1756299142370,-711.28,0.00025753,2]
[381632640,1756299142380,-850.0,0.00025753,2]
[381632641,1756299142389,-350.0,0.00025753,2]
[381632642,1756299142399,-211.23630374,0.00025754,2]
[381632643,1756299142409,-756.25,0.00025756,14]
[381632644,1756299142419,-17793.7928573,0.000258,2]
[381632645,1756299142429,-7731.92,0.000258,7]
[381632646,1756299142438,-238.131514,0.00025967,3]
[381632647,1756299142448,-168.0,0.00025983,2]
[381632648,1756299142458,-521.66058201,0.00026,2]
[381632649,1756299142468,-204.252474,0.00026,2]
[381632650,1756299142478,-1015.0,0.00026024,2]
[381632651,1756299142487,-480.0,0.00026027,2]
[381632652,1756299142497,-335.30455871,0.00026027,2]
[381632653,1756299142507,-480.0,0.00026027,2]
[381632654,1756299142516,-480.0,0.00026027,2]
[381632655,1756299142526,-493.86,0.00026027,2]
[381632656,1756299142536,-480.0,0.00026027,2]
[381632657,1756299142546,-562.7,0.00026027,2]
[381632658,1756299142555,-524.95,0.00026027,2]
[381632659,1756299142564,-480.0,0.00026027,2]
[381632660,1756299142574,-538.52,0.00026027,2]
[381632661,1756299142584,-550.62,0.00026027,2]
[381632662,1756299142594,-480.0,0.00026027,2]
[381632663,1756299142603,-576.16,0.00026027,2]
[381632664,1756299142613,-662.66,0.00026027,2]
[381632665,1756299142622,-582.51,0.00026027,2]
[381632666,1756299142631,-500.0,0.00026027,2]
[381632667,1756299142641,-480.0,0.00026027,2]
[381632668,1756299142651,-480.0,0.00026027,2]
[381632669,1756299142660,-606.2,0.00026027,2]
[381632670,1756299142670,-706.9,0.00026027,2]
[381632671,1756299142679,-437.56883897,0.00026027,2]
[381632672,1756299142689,-882.63,0.00026027,2]
[381632673,1756299142698,-231.45416634,0.00026027,2]
[381632674,1756299142708,-714.33,0.00026027,2]
[381632675,1756299142722,-612.47,0.00026027,2]
[381632676,1756299142731,-480.0,0.00026027,2]
[381632677,1756299142740,-480.0,0.00026027,2]
[381632678,1756299142750,-480.0,0.00026027,2]
[381632679,1756299142762,-512.19,0.00026027,2]
[381632680,1756299142772,-509.06,0.00026027,2]
[381632681,1756299142781,-612.82,0.00026027,2]
[381632682,1756299142792,-627.14,0.00026027,2]
[381632683,1756299142801,-624.19,0.00026027,2]
[381632684,1756299142810,-481.22,0.00026027,2]
[381632685,1756299142820,-528.91,0.00026027,2]
[381632686,1756299142829,-608.41,0.00026027,2]
[381632687,1756299142839,-547.44,0.00026027,2]
[381632688,1756299142848,-480.0,0.00026027,2]
[381632689,1756299142857,-967.44,0.00026027,2]
[381632690,1756299142867,-522.91,0.00026027,2]
[381632691,1756299142876,-624.58,0.00026027,2]
[381632692,1756299142886,-486.45,0.00026027,2]
[381632693,1756299142896,-480.0,0.00026027,2]
[381632694,1756299142905,-480.0,0.00026027,2]
[381632695,1756299142914,-480.0,0.00026027,2]
[381632696,1756299142924,-1513.62,0.00026027,2]
[381632697,1756299142933,-740.6,0.00026027,2]
[381632698,1756299142943,-561.33,0.00026027,2]
[381632699,1756299142953,-1456.95,0.00026027,2]
[381632700,1756299142962,-627.47006009,0.00026027,2]
[381632701,1756299142971,-1610.42,0.00026027,2]
[381632702,1756299142981,-507.15,0.00026027,2]
[381632703,1756299142990,-378.85163014,0.00026027,2]
[381632704,1756299143000,-628.11,0.00026027,2]
[381632705,1756299143009,-569.45,0.00026027,2]
[381632706,1756299143018,-480.0,0.00026027,2]
[381632707,1756299143027,-1196.37,0.00026027,2]
[381632708,1756299143036,-1184.81,0.00026027,2]
[381632709,1756299143047,-480.0,0.00026027,2]
[381632710,1756299143056,-595.51,0.00026027,2]
[381632711,1756299143065,-974.71,0.00026027,2]
[381632712,1756299143076,-680.85,0.00026027,2]
[381632713,1756299143097,-642.37,0.00026027,2]
[381632714,1756299143115,-480.0,0.00026027,2]
[381632715,1756299143126,-620.04,0.00026027,2]
[381632716,1756299143137,-1799.04,0.00026027,2]
[381632717,1756299143148,-888.29,0.00026027,2]
[381632718,1756299143159,-511.13,0.00026027,2]
[381632719,1756299143168,-615.79,0.00026027,2]
[381632720,1756299143177,-837.84,0.00026027,2]
[381632721,1756299143187,-1249.5,0.00026027,2]
[381632722,1756299143196,-488.18,0.00026027,2]
[381632723,1756299143205,-841.78,0.00026027,2]
[381632724,1756299143214,-480.0,0.00026027,2]
[381632725,1756299143224,-818.54,0.00026027,2]
[381632726,1756299143233,-634.58,0.00026027,2]
[381632727,1756299143243,-480.0,0.00026027,2]
[381632728,1756299143252,-480.0,0.00026027,2]
[381632729,1756299143262,-1132.23,0.00026027,2]
[381632730,1756299143271,-480.0,0.00026027,2]
[381632731,1756299143281,-480.0,0.00026027,2]
[381632732,1756299143290,-630.18,0.00026027,2]
[381632733,1756299143299,-1020.11,0.00026027,2]
[381632734,1756299143308,-987.21,0.00026027,2]
[381632735,1756299143318,-317.49048867,0.00026027,2]
[381632736,1756299143328,-480.0,0.00026027,2]
[381632737,1756299143337,-480.0,0.00026027,2]
[381632738,1756299143347,-561.06,0.00026027,2]
[381632739,1756299143356,-544.78,0.00026027,2]
[381632740,1756299143365,-655.34,0.00026027,2]
[381632741,1756299143375,-660.63,0.00026027,2]
[381632742,1756299143385,-935.85,0.00026027,2]
[381632743,1756299143394,-1338.48,0.00026027,2]
[381632744,1756299143404,-651.24,0.00026027,2]
[381632745,1756299143414,-480.0,0.00026027,2]
[381632746,1756299143423,-761.3,0.00026027,2]
[381632747,1756299143433,-631.68,0.00026027,2]
[381632748,1756299143443,-628.89,0.00026027,2]
[381632749,1756299143452,-1057.73,0.00026027,2]
[381632750,1756299143462,-520.4,0.00026027,2]
[381632751,1756299143472,-733.13,0.00026027,2]
[381632752,1756299143481,-775.56,0.00026027,2]
[381632753,1756299143491,-480.0,0.00026027,2]
[381632754,1756299143500,-1793.19,0.00026027,2]
[381632755,1756299143510,-1312.96,0.00026027,2]
[381632756,1756299143519,-615.52450224,0.00026027,2]
[381632757,1756299143529,-480.0,0.00026027,2]
[381632758,1756299143539,-594.15,0.00026027,2]
[381632759,1756299143549,-628.83,0.00026027,2]
[381632760,1756299143560,-480.0,0.00026027,2]
[381632761,1756299143569,-480.0,0.00026027,2]
[381632762,1756299143579,-902.71,0.00026027,2]
[381632763,1756299143589,-591.53,0.00026027,2]
[381632764,1756299143599,-480.0,0.00026027,2]
[381632765,1756299143608,-818.78,0.00026027,2]
[381632766,1756299143618,-8495.42,0.00026027,2]
[381632767,1756299143627,-480.0,0.00026027,2]
[381632768,1756299143637,-858.98,0.00026027,2]
[381632769,1756299143647,-746.51,0.00026027,2]
[381632771,1756299143657,-418.97263939,0.00026027,2]
[381632772,1756299143667,-625.32,0.00026027,2]
[381632773,1756299143676,-1365.1,0.00026027,2]
[381632774,1756299143685,-472.96494847,0.00026027,2]
[381632775,1756299143696,-480.0,0.00026027,2]
[381632776,1756299143707,-624.5,0.00026027,2]
[381632778,1756299143721,-1152.04,0.00026027,2]
[381632779,1756299143730,-599.34,0.00026027,2]
[381632780,1756299143739,-579.93,0.00026027,2]
[381632781,1756299143749,-2015.87,0.00026027,2]
[381632782,1756299143935,-810.1,0.00026027,2]
[381632783,1756299143945,-793.74,0.00026027,2]
[381632784,1756299143956,-1099.58,0.00026027,2]
[381632785,1756299143965,-480.0,0.00026027,2]
[381632786,1756299143975,-480.0,0.00026027,2]
[381632787,1756299143984,-736.43,0.00026027,2]
[381632788,1756299143993,-1838.61,0.00026027,2]
[381632789,1756299144002,-898.68,0.00026027,2]
[381632790,1756299144011,-480.0,0.00026027,2]
[381632791,1756299144020,-480.0,0.00026027,2]
[381632792,1756299144030,-916.71,0.00026027,2]
[381632793,1756299144040,-480.0,0.00026027,2]
[381632794,1756299144049,-521.43,0.00026027,2]
[381632795,1756299144059,-480.0,0.00026027,2]
[381632796,1756299144068,-539.62,0.00026027,2]
[381632797,1756299144078,-727.24,0.00026027,2]
[381632798,1756299144088,-480.0,0.00026027,2]
[381632799,1756299144097,-909.76,0.00026027,2]
[381632800,1756299144106,-1026.14,0.00026027,2]
[381632801,1756299144115,-1170.25,0.00026027,2]
[381632802,1756299144125,-1249.43,0.00026027,2]
[381632803,1756299144134,-711.06,0.00026027,2]
[381632804,1756299144144,-480.0,0.00026027,2]
[381632805,1756299144154,-480.0,0.00026027,2]
[381632806,1756299144164,-962.75,0.00026027,2]
[381632807,1756299144174,-670.56,0.00026027,2]
[381632808,1756299144183,-780.75,0.00026027,2]
[381632809,1756299144193,-480.0,0.00026027,2]
[381632810,1756299144203,-633.62,0.00026027,2]
[381632811,1756299144212,-638.03,0.00026027,2]
[381632812,1756299144222,-480.0,0.00026027,2]
[381632813,1756299144232,-886.17,0.00026027,2]
[381632814,1756299144242,-1346.67,0.00026027,2]
[381632815,1756299144251,-677.64,0.00026027,2]
[381632816,1756299144261,-480.0,0.00026027,2]
[381632817,1756299144271,-480.0,0.00026027,2]
[381632818,1756299144280,-741.13,0.00026027,2]
[381632819,1756299144290,-952.53,0.00026027,2]
[381632820,1756299144300,-635.74,0.00026027,2]
[381632821,1756299144310,-389.38867201,0.00026027,2]
[381632822,1756299144319,-574.03,0.00026027,2]
[381632823,1756299144329,-508.7,0.00026027,2]
[381632824,1756299144338,-687.48,0.00026027,2]
[381632825,1756299144349,-1268.98,0.00026027,2]
[381632826,1756299144359,-856.71,0.00026027,2]
[381632827,1756299144368,-218.64469174,0.00026027,2]
[381632828,1756299144378,-6495.25,0.00026027,2]
[381632829,1756299144387,-636.86,0.00026027,2]
[381632830,1756299144397,-486.07,0.00026027,2]
[381632831,1756299144407,-1458.92,0.00026027,2]
[381632832,1756299144418,-524.69,0.00026027,2]
[381632833,1756299144427,-905.99,0.00026027,2]
[381632834,1756299144437,-837.39,0.00026027,2]
[381632835,1756299144447,-624.44,0.00026027,2]
[381632836,1756299144457,-1847.92,0.00026027,2]
[381632837,1756299144467,-771.49,0.00026027,2]
[381632838,1756299144477,-1529.63,0.00026027,2]
[381632839,1756299144486,-8247.96,0.00026027,2]
[381632840,1756299144496,-3400.62,0.00026027,2]
[381632841,1756299144506,-583.48,0.00026027,2]
[381632842,1756299144516,-480.0,0.00026027,2]
[381632843,1756299144526,-480.0,0.00026027,2]
[381632844,1756299144536,-480.0,0.00026027,2]
[381632845,1756299144545,-1076.84,0.00026027,2]
[381632846,1756299144555,-1635.61,0.00026027,2]
[381632847,1756299144564,-564.33,0.00026027,2]
[381632848,1756299144574,-480.0,0.00026027,2]
[381632849,1756299144584,-740.19,0.00026027,2]
[381632850,1756299144594,-1200.96,0.00026027,2]
[381632851,1756299144603,-1559.95,0.00026027,2]
[381632852,1756299144613,-1003.43,0.00026027,2]
[381632853,1756299144623,-655.25,0.00026027,2]
[381632854,1756299144632,-1004.24,0.00026027,2]
[381632855,1756299144641,-1160.02,0.00026027,2]
[381632856,1756299144650,-626.39,0.00026027,2]
[381632857,1756299144659,-504.38,0.00026027,2]
[381632858,1756299144669,-748.48,0.00026027,2]
[381632859,1756299144678,-868.0,0.00026027,2]
[381632860,1756299144687,-632.12,0.00026027,2]
[381632861,1756299144696,-656.18,0.00026027,2]
[381632862,1756299144705,-480.0,0.00026027,2]
[381632863,1756299144717,-480.0,0.00026027,2]
[381632864,1756299144727,-639.39,0.00026027,2]
[381632865,1756299144737,-515.28,0.00026027,2]
[381632866,1756299144746,-860.92,0.00026027,2]
[381632867,1756299144755,-707.77,0.00026027,2]
[381632868,1756299144765,-1553.38,0.00026027,2]
[381632869,1756299144775,-507.0,0.00026027,2]
[381632870,1756299144785,-480.0,0.00026027,2]
[381632871,1756299144795,-621.34,0.00026027,2]
[381632872,1756299144805,-480.0,0.00026027,2]
[381632873,1756299144814,-961.78,0.00026027,2]
[381632874,1756299144824,-2093.04,0.00026027,2]
[381632875,1756299144833,-480.0,0.00026027,2]
[381632876,1756299144843,-481.67,0.00026027,2]
[381632877,1756299144853,-861.82,0.00026027,2]
[381632878,1756299144863,-480.0,0.00026027,2]
[381632879,1756299144873,-906.46,0.00026027,2]
[381632880,1756299144882,-500.0,0.00026027,2]
[381632881,1756299144892,-1944.4,0.00026027,2]
[381632882,1756299144902,-480.0,0.00026027,2]
[381632883,1756299144911,-480.0,0.00026027,2]
[381632884,1756299144921,-756.21,0.00026027,2]
[381632885,1756299144931,-691.47,0.00026027,2]
[381632886,1756299144940,-669.41,0.00026027,2]
[381632887,1756299144949,-822.12,0.00026027,2]
[381632888,1756299144959,-664.01,0.00026027,2]
[381632889,1756299144969,-5734.46,0.00026027,2]
[381632890,1756299144979,-480.0,0.00026027,2]
[381632891,1756299144988,-480.0,0.00026027,2]
[381632892,1756299144998,-153.58715408,0.00026027,2]
[381632893,1756299145008,-1472.58,0.00026027,2]
[381632894,1756299145018,-1010.62,0.00026027,2]
[381632895,1756299145028,-746.58,0.00026027,2]
[381632896,1756299145037,-945.67,0.00026027,2]
[381632897,1756299145047,-820.03,0.00026027,2]
[381632898,1756299145056,-2419.42,0.00026027,2]
[381632899,1756299145065,-2003.06,0.00026027,2]
[381632900,1756299145075,-712.33,0.00026027,2]
[381632901,1756299145084,-632.8,0.00026027,2]
[381632902,1756299145094,-1302.43,0.00026027,2]
[381632903,1756299145103,-879.19,0.00026027,2]
[381632904,1756299145113,-626.24,0.00026027,2]
[381632905,1756299145122,-2358.04,0.00026027,2]
[381632906,1756299145133,-571.94,0.00026027,2]
[381632907,1756299145142,-1028.29,0.00026027,2]
[381632908,1756299145152,-480.0,0.00026027,2]
[381632909,1756299145162,-760.04,0.00026027,2]
[381632910,1756299145172,-480.0,0.00026027,2]
[381632911,1756299145181,-534.07,0.00026027,2]
[381632912,1756299145191,-480.0,0.00026027,2]
[381632913,1756299145200,-773.62,0.00026027,2]
[381632914,1756299145210,-480.0,0.00026027,2]
[381632915,1756299145219,-579.37,0.00026027,2]
[381632916,1756299145229,-481.34,0.00026027,2]
[381632917,1756299145238,-689.04,0.00026027,2]
[381632918,1756299145249,-480.0,0.00026027,2]
[381632919,1756299145259,-558.49,0.00026027,2]
[381632920,1756299145269,-480.0,0.00026027,2]
[381632921,1756299145278,-3533.68,0.00026027,2]
[381632922,1756299145293,-877.94,0.00026027,2]
[381632923,1756299145312,-657.92,0.00026027,2]
[381632924,1756299145329,-541.91,0.00026027,2]
[381632925,1756299145348,-1306.03,0.00026027,2]
[381632926,1756299145368,-4136.98,0.00026027,2]
[381632927,1756299145385,-480.0,0.00026027,2]
[381632928,1756299145404,-1078.58,0.00026027,2]
[381632929,1756299145419,-680.84,0.00026027,2]
[381632930,1756299145436,-611.17,0.00026027,2]
[381632931,1756299145454,-745.97,0.00026027,2]
[381632932,1756299145473,-1546.75,0.00026027,2]
[381632933,1756299145489,-483.6,0.00026027,2]
[381632934,1756299145505,-1237.23,0.00026027,2]
[381632935,1756299145520,-2253.99,0.00026027,2]
[381632936,1756299145539,-4927.91,0.00026027,2]
[381632937,1756299145553,-480.0,0.00026027,2]
[381632938,1756299145572,-727.85,0.00026027,2]
[381632939,1756299145587,-711.45,0.00026027,2]
[381632940,1756299145604,-681.98,0.00026027,2]
[381632941,1756299145619,-2444.85,0.00026027,2]
[381632942,1756299145635,-1897.45,0.00026027,2]
[381632943,1756299145651,-2263.07,0.00026027,2]
[381632944,1756299145666,-4617.09,0.00026027,2]
[381632945,1756299145682,-1837.84,0.00026027,2]
[381632946,1756299145698,-867.08,0.00026027,2]
[381632947,1756299145714,-1079.7,0.00026027,2]
[381632948,1756299145733,-2907.91,0.00026027,2]
[381632949,1756299145748,-480.0,0.00026027,2]
[381632950,1756299145766,-1354.76,0.00026027,2]
[381632951,1756299145780,-2286.82,0.00026027,2]
[381632952,1756299145797,-576.96,0.00026027,2]
[381632953,1756299145814,-480.0,0.00026027,2]
[381632954,1756299145829,-1707.9,0.00026027,2]
[381632955,1756299145844,-812.92,0.00026027,2]
[381632956,1756299145858,-480.0,0.00026027,2]
[381632957,1756299145874,-739.93,0.00026027,2]
[381632958,1756299145890,-1062.67,0.00026027,2]
[381632959,1756299145906,-679.72,0.00026027,2]
[381632960,1756299145922,-3535.34,0.00026027,2]
[381632961,1756299145938,-550.73,0.00026027,2]
[381632962,1756299145953,-577.42,0.00026027,2]
[381632963,1756299145969,-695.89,0.00026027,2]
[381632964,1756299145984,-680.83,0.00026027,2]
[381632965,1756299145998,-600.93,0.00026027,2]
[381632966,1756299146013,-829.46,0.00026027,2]
[381632967,1756299146028,-1631.46,0.00026027,2]
[381632968,1756299146045,-1995.59,0.00026027,2]
[381632969,1756299146059,-1590.45,0.00026027,2]
[381632970,1756299146074,-539.05,0.00026027,2]
[381632971,1756299146088,-712.28,0.00026027,2]
[381632972,1756299146103,-638.72,0.00026027,2]
[381632973,1756299146117,-266.71,0.00026027,2]
[381632974,1756299146131,-480.0,0.00026027,2]
[381632975,1756299146145,-755.02,0.00026027,2]
[381632976,1756299146160,-480.0,0.00026027,2]
[381632977,1756299146175,-789.18,0.00026027,2]
[381632978,1756299146189,-480.0,0.00026027,2]
[381632979,1756299146203,-685.55,0.00026027,2]
[381632980,1756299146218,-2224.28,0.00026027,2]
[381632981,1756299146233,-622.18,0.00026027,2]
[381632982,1756299146247,-1015.89,0.00026027,2]
[381632983,1756299146261,-1801.64,0.00026027,2]
[381632984,1756299146279,-678.47,0.00026027,2]
[381632985,1756299146293,-631.08,0.00026027,2]
[381632986,1756299146307,-698.69,0.00026027,2]
[381632987,1756299146321,-2888.9,0.00026027,2]
[381632988,1756299146337,-908.23,0.00026027,2]
[381632989,1756299146352,-480.0,0.00026027,2]
[381632990,1756299146367,-901.06,0.00026027,2]
[381632991,1756299146383,-480.0,0.00026027,2]
[381632992,1756299146398,-480.0,0.00026027,2]
[381632993,1756299146413,-1290.3,0.00026027,2]
[381632994,1756299146429,-480.0,0.00026027,2]
[381632995,1756299146444,-1110.35,0.00026027,2]
[381632996,1756299146459,-911.51,0.00026027,2]
[381632997,1756299146474,-711.28,0.00026027,2]
[381632998,1756299146491,-485.0,0.00026036,2]
[381632999,1756299146505,-168.0,0.00026056,2]
[381633000,1756299146520,-860.0,0.0002618,2]
[381633001,1756299146535,-4500.0,0.00026256,2]
[381633002,1756299146548,-1015.0,0.00026298,2]
[381633003,1756299146563,-14002.95,0.000263,2]
[381633004,1756299146577,-480.0,0.00026301,2]
[381633005,1756299146592,-597.96464534,0.00026301,2]
[381633006,1756299146606,-480.0,0.00026301,2]
[381633007,1756299146619,-493.86,0.00026301,2]
[381633008,1756299146635,-480.0,0.00026301,2]
[381633009,1756299146648,-562.7,0.00026301,2]
[381633010,1756299146662,-524.95,0.00026301,2]
[381633011,1756299146676,-480.0,0.00026301,2]
[381633012,1756299146690,-538.52,0.00026301,2]
[381633013,1756299146704,-550.62,0.00026301,2]
[381633014,1756299146721,-480.0,0.00026301,2]
[381633015,1756299146735,-576.16,0.00026301,2]
[381633016,1756299146749,-662.66,0.00026301,2]
[381633017,1756299146764,-582.51,0.00026301,2]
[381633018,1756299146778,-319.58479282,0.00026301,2]
[381633019,1756299146794,-261.76442472,0.00026301,2]
[381633020,1756299146809,-480.0,0.00026301,2]
[381633021,1756299146825,-606.2,0.00026301,2]
[381633022,1756299146838,-706.9,0.00026301,2]
[381633023,1756299146852,-882.63,0.00026301,2]
[381633024,1756299146866,-714.33,0.00026301,2]
[381633025,1756299146879,-612.47,0.00026301,2]
[381633026,1756299146893,-480.0,0.00026301,2]
[381633027,1756299146907,-480.0,0.00026301,2]
[381633028,1756299146921,-480.0,0.00026301,2]
[381633029,1756299146935,-512.19,0.00026301,2]
[381633030,1756299146950,-509.06,0.00026301,2]
[381633031,1756299146964,-612.82,0.00026301,2]
[381633032,1756299146977,-627.14,0.00026301,2]
[381633033,1756299146991,-624.19,0.00026301,2]
[381633034,1756299147004,-481.22,0.00026301,2]
[381633035,1756299147018,-528.91,0.00026301,2]
[381633036,1756299147032,-608.41,0.00026301,2]
[381633037,1756299147046,-547.44,0.00026301,2]
[381633038,1756299147060,-498.7280082,0.00026301,2]
[381633039,1756299147074,-522.91,0.00026301,2]
[381633040,1756299147089,-967.44,0.00026301,2]
[381633041,1756299147102,-624.58,0.00026301,2]
[381633042,1756299147115,-486.45,0.00026301,2]
[381633043,1756299147128,-596.07,0.00026301,2]
[381633044,1756299147142,-480.0,0.00026301,2]
[381633045,1756299147156,-480.0,0.00026301,2]
[381633046,1756299147171,-1513.62,0.00026301,2]
[381633047,1756299147185,-740.6,0.00026301,2]
[381633048,1756299147199,-561.33,0.00026301,2]
[381633049,1756299147214,-1456.95,0.00026301,2]
[381633050,1756299147228,-1610.42,0.00026301,2]
[381633051,1756299147241,-507.15,0.00026301,2]
[381633052,1756299147254,-628.11,0.00026301,2]
[381633053,1756299147268,-569.45,0.00026301,2]
[381633054,1756299147282,-480.0,0.00026301,2]
[381633055,1756299147295,-1196.37,0.00026301,2]
[381633056,1756299147309,-1184.81,0.00026301,2]
[381633057,1756299147322,-480.0,0.00026301,2]
[381633058,1756299147338,-595.51,0.00026301,2]
[381633059,1756299147353,-974.71,0.00026301,2]
[381633060,1756299147371,-680.85,0.00026301,2]
[381633061,1756299147384,-642.37,0.00026301,2]
[381633062,1756299147398,-480.0,0.00026301,2]
[381633063,1756299147707,-620.04,0.00026301,2]
[381633064,1756299147717,-1799.04,0.00026301,2]
[381633065,1756299147727,-888.29,0.00026301,2]
[381633066,1756299147739,-511.13,0.00026301,2]
[381633067,1756299147748,-615.79,0.00026301,2]
[381633068,1756299147758,-837.84,0.00026301,2]
[381633069,1756299147768,-1249.5,0.00026301,2]
[381633070,1756299147778,-488.18,0.00026301,2]
[381633071,1756299147788,-841.78,0.00026301,2]
[381633072,1756299147797,-480.0,0.00026301,2]
[381633073,1756299147808,-818.54,0.00026301,2]
[381633074,1756299147817,-634.58,0.00026301,2]
[381633075,1756299147827,-426.40554061,0.00026301,2]
[381633076,1756299147836,-480.0,0.00026301,2]
[381633077,1756299147847,-1132.23,0.00026301,2]
[381633078,1756299147857,-475.59930696,0.00026301,2]
[381633079,1756299147866,-480.0,0.00026301,2]
[381633080,1756299147876,-630.18,0.00026301,2]
[381633081,1756299147885,-1020.11,0.00026301,2]
[381633082,1756299147895,-987.21,0.00026301,2]
[381633083,1756299147904,-480.0,0.00026301,2]
[381633084,1756299147913,-480.0,0.00026301,2]
[381633085,1756299147924,-561.06,0.00026301,2]
[381633086,1756299147934,-544.78,0.00026301,2]
[381633087,1756299147943,-655.34,0.00026301,2]
[381633088,1756299147953,-660.63,0.00026301,2]
[381633089,1756299147963,-935.85,0.00026301,2]
[381633090,1756299147972,-1338.48,0.00026301,2]
[381633091,1756299147983,-651.24,0.00026301,2]
[381633092,1756299147996,-480.0,0.00026301,2]
[381633093,1756299148006,-761.3,0.00026301,2]